Cogmind - Beta 14 @@@ ROGUE MODE // 2024.12.08 @ 11:27:56 Player: SH-pl7 Result: Destroyed by OF-UN1(z) with Makeshift Shrapnel Gun Performance ------------- Evolutions (3) 1500 Regions Visited (9) 1800 Robots Destroyed (87) 435 Value Destroyed (2875) 2875 Prototype IDs (31) 620 Alien Tech Used (0) 0 Bonus (719) 719 TOTAL SCORE: 7949 Bonus ------- Follower Combat Kills 119 Aligned with FarCom 300 Met Imprinter 300 Cogmind --------- Core Integrity 0/700 Matter 295/300 Energy 126/300 System Corruption 4% Temperature Cool (0) Movement Treading (170) Location -6/Zion Parts ------- > --- POWER (1) -------- Enhanced Nuclear Core > --- PROPULSION (4) --- Armored Treads Armored Treads Armored Treads > --- UTILITY (5) ------ High-capacity Storage Unit Advanced Targeting Computer Tactical Coordination Suite > --- WEAPON (3) ------- Makeshift Spear > --- INVENTORY (20) --- Armored Treads Medium Treads Makeshift Transmission Jammer Makeshift Cloaking Device Heavy Ion Cannon Firepult Signal Generator GAL Module Peak State ------------ > --- POWER ------------ Improved Deuterium Engine > --- PROPULSION ------- Armored Treads Armored Treads Armored Treads Medium Treads > --- UTILITY ---------- High-capacity Storage Unit Advanced Targeting Computer Advanced Targeting Computer Hardened Heavy Armor Plating > --- WEAPON ----------- Gatling Laser Gauss Rifle Chainsword > --- INVENTORY -------- Improved Deuterium Engine Enhanced Nuclear Core Armored Treads Armored Treads Armored Treads Armored Treads Armored Treads Makeshift Transmission Jammer Makeshift Cloaking Device Hardened Heavy Armor Plating Medium Insulated Plating Heavy Ion Cannon Heavy Ion Cannon Firepult Proton Missile Launcher Signal Generator GAL Module [Rating: 53] Favorites ----------- Power Improved Deuterium Engine Engine Improved Deuterium Engine Power Core Enhanced Nuclear Core Propulsion Armored Treads Treads Armored Treads Leg Aluminum Leg Wheel Wheel Hover Unit Aerolev Unit Flight Unit Improved Cesium-ion Thruster Utility Advanced Targeting Computer Device Improved Heat Sink Storage Large Storage Unit Processor Advanced Targeting Computer Hackware Hacking Suite Protection Hardened Heavy Armor Plating Weapon Enhanced Autogun Energy Gun Medium Laser Energy Cannon Heavy Ion Cannon Ballistic Gun Enhanced Autogun Ballistic Cannon Mini Assault Cannon Launcher Proton Missile Launcher Slashing Weapon Chainsword Piercing Weapon Makeshift Spear Build | -11 -10 -10 -10 -9 -8 -8 -7 -7 -6 ------- Run | Yrd Mat Min Exi Min Mat Sto Fac Low Zio Slots Evolved 6 | . . . . . 4 . 2 . . Power . | . . . . . . . . . . Propulsion 2 | . . . . . 1 . 1 . . Utility 3 | . . . . . 3 . . . . Weapon 1 | . . . . . . . 1 . . Parts Attached 101 | 6 6 2 . 4 4 16 41 . 22 Power 9 | 1 . . . . . 2 4 . 2 Engine 6 | 1 . . . . . 2 2 . 1 Core 3 | . . . . . . . 2 . 1 Reactor . | . . . . . . . . . . Propulsion 37 | 2 2 1 . 4 . 7 16 . 5 Treads 30 | 2 2 . . 3 . 4 14 . 5 Leg 1 | . . . . . . 1 . . . Wheel 2 | . . 1 . 1 . . . . . Hover 2 | . . . . . . 1 1 . . Flight 2 | . . . . . . 1 1 . . Utility 27 | 1 1 1 . . 3 4 12 . 5 Device 7 | . . 1 . . 1 . 4 . 1 Storage 3 | 1 1 . . . . . 1 . . Processor 4 | . . . . . 1 2 1 . . Hackware 2 | . . . . . 1 . 1 . . Protection 11 | . . . . . . 2 5 . 4 Artifact . | . . . . . . . . . . Weapon 28 | 2 3 . . . 1 3 9 . 10 Energy Gun 5 | . 1 . . . 1 . 1 . 2 Energy Cannon 5 | . . . . . . 1 1 . 3 Ballistic Gun 12 | 2 2 . . . . 2 5 . 1 Ballistic Cannon 1 | . . . . . . . 1 . . Launcher 1 | . . . . . . . . . 1 Special Weapon . | . . . . . . . . . . Impact Weapon . | . . . . . . . . . . Slashing Weapon 3 | . . . . . . . 1 . 2 Piercing Weapon 1 | . . . . . . . . . 1 Special Melee Weapon . | . . . . . . . . . . Unidentified Prototypes 8 | . . . . . . 3 5 . . Parts Lost 25 | . 2 . . 1 1 3 3 . 15 Power 4 | . . . . . . 1 1 . 2 Propulsion 7 | . 1 . . 1 . 1 . . 4 Utility 7 | . . . . . . 1 2 . 4 Weapon 7 | . 1 . . . 1 . . . 5 Highest Loss Streak 14 | . 1 . . 1 1 3 2 . 14 To Critical Strikes . | . . . . . . . . . . Average Slot Usage (%) 92 | . 85 91 100 100 79 95 98 92 84 Engine 7 | . 14 14 14 14 9 8 2 7 6 Core 1 | . . . . . . . 3 . . Treads 26 | . 26 14 14 26 18 21 29 30 29 Wheel 1 | . . 6 14 1 . . . . . Device 4 | . . 6 14 14 12 8 4 . . Storage 9 | . 16 21 14 14 9 9 7 7 7 Processor 11 | . . . . . 9 15 15 15 14 Hackware 1 | . . . . . 9 6 2 . . Protection 4 | . . . . . . 4 5 7 7 Energy Gun 4 | . 5 14 14 14 9 5 1 7 3 Energy Cannon 1 | . . . . . . 4 1 7 . Ballistic Gun 13 | . 22 14 14 14 3 7 19 . 2 Slashing Weapon 1 | . . . . . . . . 7 6 Peak Build Rating 53 | 7 8 11 13 13 24 33 52 51 53 Average Rating 36 | 5 6 8 11 12 21 28 49 51 48 On Entrance 20 | . 7 7 11 13 13 24 30 51 51 Naked Turns . | . . . . . . . . . . Heaviest Build 89 | 12 33 33 29 29 32 38 85 85 89 Greatest Support 112 | 40 40 20 10 40 40 60 112 88 88 Greatest Overweight (x) 3 | 3 1 2 2 1 . . . . 1 Average Overweight (x) . | . . 1 2 . . . . . . Largest Inventory Capacity 20 | 8 15 15 15 15 15 15 20 20 20 Average Capacity 15 | 7 9 15 15 15 15 15 15 20 20 Most Carried 20 | 8 11 15 15 15 14 15 16 16 20 Average Carried 14 | 5 8 13 14 14 13 14 14 16 18 Final Capacity 20 | 8 15 15 15 15 15 15 20 20 20 Final Carried 16 | 8 11 15 15 15 14 15 16 16 9 Class Distribution -------------------- 58% | Mutant 22% | Gunner 17% | Skirmisher Dominant Class ---------------- Mutant | -10/Materials Mutant | -10/Mines Mutant | -10/Exiles Mutant | -9/Mines Mutant | -8/Materials Mutant | -8/Storage Gunner | -7/Factory Gunner | -7/Lower Caves Mutant | -6/Zion Resources | -11 -10 -10 -10 -9 -8 -8 -7 -7 -6 ----------- Run | Yrd Mat Min Exi Min Mat Sto Fac Low Zio Matter Collected 3089 | 260 150 29 . 41 43 397 1768 . 401 Remotely 987 | . . . . . . . 987 . . Salvage Created 3706 | 32 412 67 . 126 141 564 1835 . 529 Parts 188 | 5 36 6 . 4 3 25 80 . 29 Haulers Intercepted 2 | . . . . . . 1 1 . . Recyclers Shooed 2 | . . . . . . . 2 . . Parts Field Recycled . | . . . . . . . . . . Retrieved Matter . | . . . . . . . . . . Parts Self-Destructed 2 | . . . . . . . . . 2 Prevented . | . . . . . . . . . . Kills | -11 -10 -10 -10 -9 -8 -8 -7 -7 -6 ------- Run | Yrd Mat Min Exi Min Mat Sto Fac Low Zio Combat Hostiles Destroyed 75 | . 11 4 . 3 3 10 40 . 4 Melee 3 | . . . . . . . . . 3 Guns 70 | . 11 4 . 3 2 10 40 . . AOE 1 | . . . . . . . . . 1 Classes Destroyed 19 | 1 5 . . . . 4 6 . 3 Worker 3 | . 1 . . . . . 2 . . Tunneler 2 | 2 . . . . . . . . . Hauler 2 | . . . . . . 1 1 . . Recycler 3 | . 1 . . . . . 2 . . Operator 5 | . 2 . . . . . 3 . . Watcher 3 | . . . . . . . 3 . . Swarmer 12 | . 6 4 . . . . 2 . . Grunt 26 | . 5 . . 3 3 7 8 . . Brawler 1 | . . . . . . 1 . . . Duelist 1 | . . . . . . . 1 . . Protector 1 | . . . . . . 1 . . . Sentry 7 | . . . . . . 1 6 . . Demolisher 2 | . . . . . . . 2 . . Hunter 3 | . . . . . . . 3 . . Programmer 3 | . . . . . . . 3 . . Zionite 9 | . . . . . . . . . 9 Tinkerer 2 | . . . . . . . . . 2 Assembled 15 | . . . . . . . 15 . . Thug 1 | . . . . . . . . . 1 Mutant 3 | . . . . . . . . . 3 Best Kill Streak 15 | 1 5 3 . 3 2 5 15 . 9 Combat Bots Only 15 | . 3 3 . 3 2 5 15 . 3 Max Kills in Single Turn 2 | 1 1 1 . 1 1 1 2 . 1 Gunslinging 1 | . . . . . . . 1 . . Exploded 1 | . . . . . . . . . 1 Melee 1 | . . . . . . . . . 1 Uniques/NPCs Destroyed . | . . . . . . . . . . Combat | -11 -10 -10 -10 -9 -8 -8 -7 -7 -6 -------- Run | Yrd Mat Min Exi Min Mat Sto Fac Low Zio Hostile Shots Fired 698 | . 54 10 . 9 16 41 324 . 244 Missed 206 | . 21 5 . 1 1 9 99 . 70 Damage Taken 8025 | . 391 43 . 111 262 524 2807 . 3887 Core 988 | . 95 9 . 31 107 45 239 . 462 Absorbed by Shields . | . . . . . . . . . . Redirected to Shielding 92 | . . . . . . 8 84 . . Regen/Repaired (Parts) 134 | . . . . . . . 134 . . Core Remaining (%) 72 | 100 . . . 46 . 72 . . . Volleys Fired 278 | 13 50 9 . 6 23 42 127 . 8 Largest 3 | 2 2 2 . 2 2 2 3 . 3 Hottest 210 | 40 70 70 . 70 95 150 173 . 210 Shots Fired 674 | 26 100 18 . 12 31 83 381 . 23 Gun 653 | 26 100 18 . 12 31 79 376 . 11 Cannon 18 | . . . . . . 4 5 . 9 Launcher 3 | . . . . . . . . . 3 Special . | . . . . . . . . . . Kinetic 570 | 26 71 9 . 6 8 74 371 . 5 Thermal 101 | . 29 9 . 6 23 9 10 . 15 Explosive . | . . . . . . . . . . Electromagnetic 3 | . . . . . . . . . 3 Robot Hit Streak 30 | 9 8 5 . 9 4 26 30 . 16 Robot Miss Streak 6 | 1 6 3 . 1 2 2 2 . 3 Penetration Max 1 | . . . . . . . 1 . 1 Secondary Targets 14 | . 1 1 . 1 1 4 6 . . Max Gunslinging Chain 1 | . 1 1 . 1 1 1 1 . . Shots Hit Robots 511 | 20 61 9 . 10 20 65 282 . 44 Core Hits 198 | 4 27 5 . 7 5 24 102 . 24 Critical Kills . | . . . . . . . . . . Critical Parts Destroyed 4 | . 1 . . . . . 3 . . Critical Strikes 15 | . 3 . . 1 3 . 3 . 5 Burn 6 | . 2 . . 1 3 . . . . Destroy 4 | . 1 . . . . . 3 . . Sever 2 | . . . . . . . . . 2 Impale 3 | . . . . . . . . . 3 Melee Attacks 38 | . . . . . . . 3 . 35 Impact . | . . . . . . . . . . Slashing 22 | . . . . . . . 3 . 19 Piercing 16 | . . . . . . . . . 16 Sneak Attacks 2 | . . . . . . . . . 2 Combat Hostiles . | . . . . . . . . . . Follow-up Attacks . | . . . . . . . . . . Damage Inflicted 9348 | 169 582 93 . 106 364 1089 5354 . 1591 Guns 7945 | 169 582 93 . 106 364 1089 5261 . 281 Cannons 282 | . . . . . . . 93 . 189 Explosions 338 | . . . . . . . . . 338 Melee 783 | . . . . . . . . . 783 Ramming . | . . . . . . . . . . Kinetic 6938 | 169 333 33 . 32 47 1067 5132 . 125 Thermal 1289 | . 249 60 . 74 317 22 222 . 345 Explosive . | . . . . . . . . . . Electromagnetic 338 | . . . . . . . . . 338 Impact . | . . . . . . . . . . Slashing 504 | . . . . . . . . . 504 Piercing 279 | . . . . . . . . . 279 Highest Corruption 6 | . . . . . . 1 6 1 4 Average Corruption 2 | . . . . . . 1 2 1 2 Corruption Purged 6 | . . . . . . . 6 . . Corruption Blocked . | . . . . . . . . . . Effects 20 | . . . . . . 1 18 . 1 Message Errors 5 | . . . . . . 1 3 . 1 Matter Fused 2 | . . . . . . . 2 . . Heat Flow Errors 5 | . . . . . . . 5 . . Energy Discharges 1 | . . . . . . . 1 . . Parts Fused 2 | . . . . . . . 2 . . Data Loss (minor) 5 | . . . . . . . 5 . . Overload Shots . | . . . . . . . . . . Overflow Damage 69 | . . . . . . . 5 . 64 Projectiles 10 | . . . . . . . 5 . 5 Explosions . | . . . . . . . . . . Melee 59 | . . . . . . . . . 59 Knockbacks . | . . . . . . . . . . Impact . | . . . . . . . . . . Kinetic . | . . . . . . . . . . Secondary . | . . . . . . . . . . Self-Inflicted Damage 43 | . . . . . . . . . 43 Shots 2 | . . . . . . . . . 2 Rammed . | . . . . . . . . . . Targets Rammed . | . . . . . . . . . . Kicked . | . . . . . . . . . . Crushed . | . . . . . . . . . . Highest Temperature 471 | . 347 30 . 18 64 46 343 . 471 Average Temperature 100 | . 124 6 . 9 31 16 89 . 207 Received Heat Transfer 2254 | . 117 . . 81 189 279 691 . 897 Effects 6 | . 1 . . . . . 1 . 4 Shutdowns 2 | . . . . . . . . . 2 Energy Bleed 2 | . 1 . . . . . . . 1 Matter Decay 1 | . . . . . . . . . 1 Short Circuit 1 | . . . . . . . 1 . . Siege Activations . | . . . . . . . . . . Robots Corrupted . | . . . . . . . . . . Combat Hostiles . | . . . . . . . . . . Parts Fried 1 | . . . . . . . . . 1 Impact Corruptions . | . . . . . . . . . . Robots Melted 1 | . . . . . 1 . . . . Combat Hostiles 1 | . . . . . 1 . . . . Parts Melted 8 | . . 1 . 3 1 1 1 . 1 Heat Transferred 3093 | . 888 185 . 296 777 37 386 . 524 Parts Sabotaged . | . . . . . . . . . . Parts Stolen . | . . . . . . . . . . Parts Stripped . | . . . . . . . . . . Power Chain Reactions . | . . . . . . . . . . Alert | -11 -10 -10 -10 -9 -8 -8 -7 -7 -6 ------- Run | Yrd Mat Min Exi Min Mat Sto Fac Low Zio Peak Influence 317 | 10 220 263 . 41 175 317 280 . . Initial 85 | . 6 85 . . 15 73 56 . . Average 133 | 2 78 199 . 39 108 157 152 . . Maximum Alert Level 1 | . 1 1 . . . 1 1 . . Low Security (%) 75 | 100 95 63 . 100 100 80 65 . . Level 1 24 | . 4 36 . . . 19 34 . . Level 2 . | . . . . . . . . . . Level 3 . | . . . . . . . . . . Level 4 . | . . . . . . . . . . Level 5 . | . . . . . . . . . . High Security . | . . . . . . . . . . Max Security . | . . . . . . . . . . Squads Dispatched 20 | . 3 2 . . 3 3 9 . . Investigation 3 | . 1 1 . . 1 . . . . Extermination 3 | . . . . . . . 3 . . Reinforcement 8 | . 2 . . . 2 . 4 . . Assault 3 | . . 1 . . . 2 . . . Garrison 3 | . . . . . . 1 2 . . Intercept . | . . . . . . . . . . Searches Triggered . | . . . . . . . . . . Construction Impeded . | . . . . . . . . . . Haulers Reinforced 1 | . . . . . . . 1 . . Active Scanning Responses . | . . . . . . . . . . Cargo Convoy Interrupts . | . . . . . . . . . . Stealth | -11 -10 -10 -10 -9 -8 -8 -7 -7 -6 --------- Run | Yrd Mat Min Exi Min Mat Sto Fac Low Zio Distress Signals 4 | . 2 . . . 1 . 1 . . Communications Jammed . | . . . . . . . . . . Distress Signals . | . . . . . . . . . . Times Spotted 140 | . 26 6 . 3 14 12 55 . 24 Peak Tracking Total 9 | . 5 3 . 2 6 9 4 . 9 Tactical Retreats 9 | . 3 . . . 1 . . . 5 Traps | -11 -10 -10 -10 -9 -8 -8 -7 -7 -6 ------- Run | Yrd Mat Min Exi Min Mat Sto Fac Low Zio Traps Triggered 6 | . 4 . . . . . 2 . . Indirectly . | . . . . . . . . . . Trap Hack Attempts . | . . . . . . . . . . Triggered . | . . . . . . . . . . Disarmed . | . . . . . . . . . . Reprogrammed . | . . . . . . . . . . Reused . | . . . . . . . . . . Traps Extracted . | . . . . . . . . . . Installed . | . . . . . . . . . . Triggered . | . . . . . . . . . . Machines | -11 -10 -10 -10 -9 -8 -8 -7 -7 -6 ---------- Run | Yrd Mat Min Exi Min Mat Sto Fac Low Zio Machines Disabled 15 | . 1 2 . . 2 4 3 . 3 Max in Single Turn 1 | . 1 . . . 1 1 1 . 1 Garrison Access 1 | . . . . . . . 1 . . Machines Repaired . | . . . . . . . . . . Machines Dismantled . | . . . . . . . . . . Machines Sabotaged . | . . . . . . . . . . Overloaded Fab Kills . | . . . . . . . . . . Hacking | -11 -10 -10 -10 -9 -8 -8 -7 -7 -6 --------- Run | Yrd Mat Min Exi Min Mat Sto Fac Low Zio Machines Accessed 9 | . . 1 4 . . 1 3 . . Terminals 2 | . . . . . . 1 1 . . Fabricators . | . . . . . . . . . . Repair Stations 1 | . . . . . . . 1 . . Recycling Units . | . . . . . . . . . . Scanalyzers . | . . . . . . . . . . Garrison Access 1 | . . . . . . . 1 . . Total Hacks 44 | . . 1 27 . . 4 12 . . Successful 32 | . . 1 27 . . . 4 . . Failed 12 | . . . . . . 4 8 . . Catastrophic . | . . . . . . . . . . Database Lockouts . | . . . . . . . . . . Manual 8 | . . . 1 . . 4 2 . 1 Terminals 6 | . . . . . . 4 2 . . Fabricators . | . . . . . . . . . . Repair Stations 7 | . . . . . . . 7 . . Recycling Units . | . . . . . . . . . . Scanalyzers . | . . . . . . . . . . Garrison Access 3 | . . . . . . . 3 . . Terminal Hacks 28 | . . 1 27 . . . . . . Record 26 | . . . 26 . . . . . . Open Door 1 | . . 1 . . . . . . . Derelict Proto ID Bank 1 | . . . 1 . . . . . . Fabricator Hacks . | . . . . . . . . . . Repair Station Hacks 3 | . . . . . . . 3 . . Scan Component 2 | . . . . . . . 2 . . Repair 1 | . . . . . . . 1 . . Recycling Unit Hacks . | . . . . . . . . . . Scanalyzer . | . . . . . . . . . . Garrison Access Hacks 1 | . . . . . . . 1 . . Seal Access 1 | . . . . . . . 1 . . Unauthorized Hacks . | . . . . . . . . . . Terminals . | . . . . . . . . . . Fabricators . | . . . . . . . . . . Repair Stations . | . . . . . . . . . . Recycling Units . | . . . . . . . . . . Scanalyzers . | . . . . . . . . . . Garrison Access . | . . . . . . . . . . Data Cores Recovered 1 | . . . . . . . 1 . . Used . | . . . . . . . . . . Hacking Detections 4 | . . . . . . 1 3 . . Full Trace Events . | . . . . . . . . . . Feedback Events . | . . . . . . . . . . Feedback Blocked . | . . . . . . . . . . Robot Schematics Acquired 4 | . . . . . . . . . 4 Robots Built . | . . . . . . . . . . Authchips . | . . . . . . . . . . Time . | . . . . . . . . . . Total Robot Build Rating . | . . . . . . . . . . Part Schematics Acquired 15 | . . . . . . . . . 15 Parts Built . | . . . . . . . . . . Authchips . | . . . . . . . . . . Time . | . . . . . . . . . . Total Part Build Rating . | . . . . . . . . . . Parts Repaired 1 | . . . . . . . 1 . . Time 44 | . . . . . . . 44 . . Parts Recycled . | . . . . . . . . . . Recycled Matter . | . . . . . . . . . . Retrieved Matter . | . . . . . . . . . . Retrieved Components . | . . . . . . . . . . Parts Scanalyzed . | . . . . . . . . . . Part Schematics Acquired . | . . . . . . . . . . Parts Damaged . | . . . . . . . . . . Bothacking | -11 -10 -10 -10 -9 -8 -8 -7 -7 -6 ------------ Run | Yrd Mat Min Exi Min Mat Sto Fac Low Zio Used RIF Installer . | . . . . . . . . . . Robots Hacked . | . . . . . . . . . . Non-combat . | . . . . . . . . . . Combat . | . . . . . . . . . . Robot Hacks Applied . | . . . . . . . . . . Relay Couplers Released . | . . . . . . . . . . Fabnet Peak Effective % . | . . . . . . . . . . Robots Rewired . | . . . . . . . . . . Allies Hacked . | . . . . . . . . . . Hacks Repelled . | . . . . . . . . . . Allies | -11 -10 -10 -10 -9 -8 -8 -7 -7 -6 -------- Run | Yrd Mat Min Exi Min Mat Sto Fac Low Zio Total Allies 5 | . . 1 . 2 . 2 . . . Largest Group 2 | . . 1 1 2 2 2 . . . Highest-Rated Group 62 | . . 31 31 43 43 62 . . . Highest-Rated Ally 31 | . . 31 31 31 31 31 . . . Total Orders . | . . . . . . . . . . Ally Attacks 49 | . . 8 . 2 29 10 . . . Total Damage 756 | . . 84 . 42 459 171 . . . Kills 5 | . . 2 . . 3 . . . . Allies Corrupted . | . . . . . . . . . . Allies Melted . | . . . . . . . . . . Intel | -11 -10 -10 -10 -9 -8 -8 -7 -7 -6 ------- Run | Yrd Mat Min Exi Min Mat Sto Fac Low Zio Robot Analysis Total . | . . . . . . . . . . Derelict Logs Recovered 3 | . . . . 2 . . . . 1 Drone Launches . | . . . . . . . . . . Drone Recoveries . | . . . . . . . . . . Exploration | -11 -10 -10 -10 -9 -8 -8 -7 -7 -6 ------------- Run | Yrd Mat Min Exi Min Mat Sto Fac Low Zio Turns Passed 7638 | 206 666 390 509 316 186 480 3104 9 1772 Spaces Moved 3746 | 95 307 209 460 175 79 202 1250 6 963 Core 18 | 18 . . . . . . . . . Treads 3131 | 77 307 88 . 159 79 202 1250 6 963 Legs . | . . . . . . . . . . Wheels 597 | . . 121 460 16 . . . . . Hover . | . . . . . . . . . . Flight . | . . . . . . . . . . Fastest Speed 50 | 50 160 110 110 115 160 160 160 167 167 Average Speed 158 | 159 162 164 110 155 160 160 165 167 167 Slowest Speed 250 | 200 240 240 110 160 160 160 170 167 250 Overloaded Moves . | . . . . . . . . . . Propulsion Burnouts . | . . . . . . . . . . Robots Hopped . | . . . . . . . . . . Cave-ins Triggered . | . . . . . . . . . . Exploration Rate (%) 42 | 5 72 53 88 39 11 38 33 5 82 Regions Visited 9 Branch Regions 6 Pre-discovered Areas 3 | . . . . 2 . . . . 1 Known Exits Taken . | . . . . . . . . . . Unknown Exits Taken 9 | 1 1 1 1 1 1 1 1 1 . Scrap Searched 4 | . . 1 . 1 . . . . 2 Spaces Dug 3 | . . . . . . . 3 . . Terrain Destroyed 7 | . . . . . . 2 5 . . Melee 3 | . . . . . . . 3 . . Projectile 4 | . . . . . . 2 2 . . AOE . | . . . . . . . . . . Terrain Rammed . | . . . . . . . . . . Walls Destroyed . | . . . . . . . . . . Machines Disabled . | . . . . . . . . . . Actions | -11 -10 -10 -10 -9 -8 -8 -7 -7 -6 --------- Run | Yrd Mat Min Exi Min Mat Sto Fac Low Zio Total 4973 | 129 386 239 464 209 108 306 2077 5 1050 Wait 680 | 2 20 11 2 19 2 25 587 . 12 Move 3737 | 94 306 208 459 174 78 201 1249 5 963 Hop . | . . . . . . . . . . Pick Up 70 | 14 4 7 1 2 1 10 25 . 6 Fast Attach 36 | . 5 . . 1 1 8 20 . 1 Attach 38 | 6 1 2 . 1 2 3 8 . 15 Detach 2 | . . . . . . . . . 2 Swap 27 | . . . . 2 1 5 13 . 6 Drop 67 | . . 2 2 4 . 12 45 . 2 Fire 278 | 13 50 9 . 6 23 42 127 . 8 Melee 38 | . . . . . . . 3 . 35 Ram . | . . . . . . . . . . Kick . | . . . . . . . . . . Crush . | . . . . . . . . . . Escape Stasis . | . . . . . . . . . . Rewire . | . . . . . . . . . . Trap . | . . . . . . . . . . Miscellaneous . | . . . . . . . . . . Route ------- -11/Scrapyard -10/Materials (discovered 2 exits: [*Mat] / *Min) -10/Mines (discovered 2 exits: [*Mat] / *Exi) -10/Exiles -9/Mines -8/Materials -8/Storage -7/Factory -7/Lower Caves -6/Zion History --------- Turn | Location | Event 18 | -11/Scrapyard | Discovered new exit (range 16) 207 | -11/Scrapyard | Entered Materials 265 | -10/Materials | Discovered new exit (range 15) 308 | -10/Materials | Build established: Mutant 373 | -10/Materials | Discovered new exit (range 16) 873 | -10/Materials | Entered Mines 874 | -10/Mines | Met a Derelict testing a Signal Generator 879 | -10/Mines | Found Signal Generator 1057 | -10/Mines | Met a Derelict shopkeep closing up shop 1141 | -10/Mines | Discovered new exit (range 5) 1250 | -10/Mines | Deemed a non-threat by the Exiles lab entrance 1251 | -10/Mines | Discovered new exit (range 5) 1263 | -10/Mines | Entered Exiles 1263 | -10/Exiles | Accompanied by 1 ally 1290 | -10/Exiles | Met 8R-AWN 1306 | -10/Exiles | Met EX-HEX 1343 | -10/Exiles | Met EX-BIN 1446 | -10/Exiles | Met EX-DEC 1497 | -10/Exiles | Visited The Gauntlet 1631 | -10/Exiles | Aligned with FarCom system 1632 | -10/Exiles | Given EX-Vault access code 1657 | -10/Exiles | Opened EX-Vault 1664 | -10/Exiles | Found Firepult 1688 | -10/Exiles | Warned to stay clear of 0b10 Research branches 1758 | -10/Exiles | Discovered new exit (range 12) 1772 | -10/Exiles | Left Exiles lab with Firepult 1772 | -10/Exiles | Entered Mines 1772 | -9/Mines | Accompanied by 1 ally 1781 | -9/Mines | Core integrity fell below 50% 1867 | -9/Mines | Assembled infested the area 1978 | -9/Mines | Learned location of Storage (-8) 1978 | -9/Mines | Joined a pair of Derelicts in attacking an 0b10 outpost 2040 | -9/Mines | Learned location of Zion (-6) 2058 | -9/Mines | Found a hidden stash of uninstalled traps 2058 | -9/Mines | Discovered new exit (range 14) 2088 | -9/Mines | Entered Materials 2088 | -8/Materials | Accompanied by 2 allies 2088 | -8/Materials | Evolved 4 slots: Propulsion x1, Utility x3 2093 | -8/Materials | Led the pair of lost Derelicts to an unsafe place 2199 | -8/Materials | Discovered new exit (range 15) 2274 | -8/Materials | Entered Storage 2550 | -8/Storage | Met a pair of Derelict thieves 2680 | -8/Storage | Lost 3 parts (1p1n1u) 2681 | -8/Storage | Discovered new exit (range 19) 2709 | -8/Storage | Garrison activated, responded to threat 2754 | -8/Storage | Entered Factory 2754 | -7/Factory | Evolved 2 slots: Propulsion x1, Weapon x1 2855 | -7/Factory | Garrison activated, responded to threat 3061 | -7/Factory | Build established: Skirmisher 3266 | -7/Factory | Repaired Med. Treads 4381 | -7/Factory | Build established: Gunner 5077 | -7/Factory | Assembled infested ambush trap array 5152 | -7/Factory | Destroyed 15 combat bots 5807 | -7/Factory | Discovered new exit (range 12) 5858 | -7/Factory | Entered Lower Caves 5859 | -7/Lower Caves | A Derelict revealed a hidden shortcut to a safe place 5867 | -7/Lower Caves | Entered Zion 5914 | -6/Zion | System corruption cleaned by Quarantine Array 5989 | -6/Zion | Received a visual enhancement algorithm 6057 | -6/Zion | Build established: Mutant 6109 | -6/Zion | Acquired unknown access codes intercepted by a Zionite 6425 | -6/Zion | Learned location of 1 exit from Lower Caves 6513 | -6/Zion | Learned location of Quarantine (-2) 6562 | -6/Zion | Found GAL Module 7372 | -6/Zion | Rebuked by Imprinter 7403 | -6/Zion | Attempted to imprint without authorization 7403 | -6/Zion | Attacked by Zionites 7563 | -6/Zion | Core integrity fell below 50% 7590 | -6/Zion | Core integrity fell below 20% 7639 | -6/Zion | Destroyed by OF-UN1(z) with Makeshift Shrapnel Gun Last Messages --------------- 07626_ Hvy. Ion Cannon destroyed. 07628_ 1I-PTJ(z) pulls a Mak. Spear out of the Twisted Machinery. 07628_ 1I-PTJ(z) overheating. 07629_ 1I-PTJ(z) pulls a Mak. Axe out of the Twisted Machinery. 07629_ 1I-PTJ(z) overheating. 07631_ 1I-PTJ(z) heat damages core (-3). 07631_ Destroyed Mak. Power Source. 07631_ 1I-PTJ(z) overheating. 07633_ QD-NXA(z) suffers critical hit (Impale). 07633_ 1I-PTJ(z) overheating. 07634_ PE-D8W(z) heat short circuits Flexi-carbon Leg. 07634_ Critical hit (Burn: +37). 07634_ 1I-PTJ(z) overheating. 07636_ PE-D8W(z) overheating. 07638_ Destroyed Mak. Leg. 07638_ QD-NXA(z) destroyed. 07638_ PE-D8W(z) overheating. Map ----- +----------------------------------------------------+ | ??????????????????#!! "" """" """" ! | | ??????????????????#= " "##" """" !% | | ??????????????????# # """" "" ! | | ??????????????????##=/## ""#" "" | | ???????????????????####### """""" "" " """ | | ??????????????####??###"" "#""" "" " """ | | ??????????????#[[]"## """" #"""" "" " """"" | | ??????????????#" "" " "" """ "" """ | | ??????????????#] " "" "" | | ??????????????#" "" " | | ??????????????#|| "## """" """" | | ??????????????#####?### "" """""" | | ??????????????????????## "" """ """### | | ???????????????????????# " " ""#"#? | | ???????????????????????# "" """##? | | ???????????????????????## """" ""##?? | | ????????????????????????## """ ""##?? | | ????????????????????????#"" "" """#?? | | ????????????????????????""" "" "##?? | | ??????????????###???????#""" "z """#?? | | ?????????????##"#########"#" """#?? | | ?????????????#""""#"#"#"##"" "" ""#"#? | | ?###########?#""""""""z" #"/ """ """##? | | ?""""""""" ###" z ==%z!"=% "" """"" #""#?? | | """""""""" #"#" !%====/*=""" """#"" """#?? | | ?" #""" =/*/=@%=/""" ""##"" #"##?? | | ??"""" ##"" %!/=""""""""""##""" ""##?? | | ??""""" """##""" """#""#"##"" """#?? | | ??""""" ""####" """#####""" """#?? | | ??""""" ""###"" ""#"##"""" """#?? | | ??"""" ###" "###"""" ""#"#"""" """#?? | | ?" #"""! ""#####""" """""" """### | | """""""""" #"""%! ""#???##""" """" #""""" | | ?""""""""" #""" "##??###""" """ " """""" | | ?###########""" ""##?#""""" "" "" """ | | ???????#####""# """#?##" "" """" "" | | ??????##"""#### #"##?#"" """" | | ??????#" ###??##" """" | | ??????#" #?????#""" """"" | | ??????# #?????#"#""" "" | | ??????## #### #?????##"#""" "" """"" | | ???????#*% #??######????#### """ "" "" | | ??###### #######?????##"" """ """ " | | ?""""" """""?????#"" """ """"" | | ?###### ######?????##"" """ """" | | ?# " " #??????#""" """ | | ?# % """ #??????#""" "" | | ?# ! " " #????"###" | | ?# ! =%* """#????""""" | | ?# ! % =[ "" #????###"" | +----------------------------------------------------+ Best States ------------- Heat Dissipation 59 Energy Generation 17 Energy Capacity 300 Matter Stores 300 Matter Capacity 300 Sight Range 20 Terrain Scan Density 10 Armor Coverage 825 Resistance: EM 20 Utility Shielding 66 Evasion (%) 40 Targeting Accuracy 16 Recoil Reduction 4 Offensive Hacking 10 Item Schematics ----------------- Hardcell Cannon | -6/Zion | Archive Proton Cannon | -6/Zion | Archive Disruptor Cannon | -6/Zion | Archive Imp. Particle Charger | -6/Zion | Archive Adv. Cooling System | -6/Zion | Archive Fusion Compressor | -6/Zion | Archive Wave Gun | -6/Zion | Archive Lgt. Fission Core | -6/Zion | Archive Imp. Weapon Cycler | -6/Zion | Archive Force Field | -6/Zion | Archive Adv. Thermal Generator | -6/Zion | Archive Adv. Trap Extractor | -6/Zion | Archive Imp. Heavy Armor Plating | -6/Zion | Archive Plasma Rifle | -6/Zion | Archive Enh. Gauss Cannon | -6/Zion | Archive Robot Schematics ------------------ R-10 Processor | -6/Zion | Archive S-27 Virus | -6/Zion | Archive A-02 Transporter | -6/Zion | Archive X-77 Beamer | -6/Zion | Archive Fabricated ------------ Nothing Alien Tech Used ----------------- None Achievements -------------- None Challenges ------------ None Game ------ Seed CloakingGunGuard Manual? 0 Play Time 01:08:16 Cumulative 118.3 hours Start 2024.12.07 @ 23:36:46 End 2024.12.08 @ 11:27:56 Sessions 1 Manual Loads 0 Difficulty Rogue Special Mode None Game No. 120 Rogue 120 Adventurer 0 Explorer 0 Win Type - Total 1 Types 1/0/0/0/0/0/0/0/0 Lore% 20 Gallery% 47 Achievement% 41 Wizard Run 0 Options --------- Layout 2 ASCII 0 Keyboard 0 Movement Mouse Keybinds 0 Fullscreen 2 Font 16/SmallcapsGlow Map View 55x47 Zoom Use 2% Tactical HUD 1 Map Filters NONE Filters NONE Steam 1 RUN: 17bd14b1-43e2-469b-a01e-c12d786bb72e